Cogmind - Beta 13 @@@ ROGUE MODE // 2024.04.01 @ 14:35:06 Player: Fblade Result: Destroyed by H-55 Commando with Assault Rifle Performance ------------- Evolutions (2) 1000 Regions Visited (4) 800 Robots Destroyed (26) 130 Value Destroyed (947) 947 Prototype IDs (4) 80 Alien Tech Used (0) 0 Bonus (0) 0 TOTAL SCORE: 2957 Bonus ------- None Cogmind --------- Core Integrity 0/550 Matter 88/300 Energy 150/150 System Corruption 6% Temperature Cool (0) Movement Treading (160) Location -8/Materials Parts ------- > --- POWER (2) -------- Micro Nuclear Core > --- PROPULSION (4) --- Light Treads > --- UTILITY (3) ------ Advanced Visual Processing Unit Targeting Computer > --- WEAPON (2) ------- Heavy Assault Rifle > --- INVENTORY (5) ---- Improved Ion Engine Large Matter Pod (0) Peak State ------------ > --- POWER ------------ Micro Nuclear Core Micro Nuclear Core > --- PROPULSION ------- Titanium Leg Titanium Leg VSS Leg > --- UTILITY ---------- Improved Heat Sink Advanced Visual Processing Unit Targeting Computer > --- WEAPON ----------- Minigun Advanced EMP Blaster > --- INVENTORY -------- Improved Ion Engine Micro Nuclear Core Micro Nuclear Core Large Matter Pod Minigun [Rating: 32] Favorites ----------- Power Micro Nuclear Core Engine Light Ion Engine Power Core Micro Nuclear Core Propulsion Compact Wheel Treads Light Treads Leg Titanium Leg Wheel Compact Wheel Flight Unit Cesium-ion Thruster Utility ECM Suite Device ECM Suite Storage Small Battery Processor Advanced Visual Processing Unit Protection Hardened Medium Armor Plating Weapon Heavy Particle Gun Energy Gun Heavy Particle Gun Energy Cannon Light EM Pulse Cannon Ballistic Gun Minigun Launcher Advanced EMP Blaster Slashing Weapon Scythe Build | -11 -10 -9 -9 -8 ------- Run | Yrd Mat Mat Min Mat Slots Evolved 4 | . . 2 . 2 Power 1 | . . . . 1 Propulsion 2 | . . 2 . . Utility 1 | . . . . 1 Weapon . | . . . . . Parts Attached 48 | 5 2 12 1 28 Power 9 | 1 . 2 . 6 Engine 3 | 1 . 2 . . Core 6 | . . . . 6 Reactor . | . . . . . Propulsion 12 | 2 1 1 . 8 Treads 1 | . . . . 1 Leg 5 | . . 1 . 4 Wheel 5 | 2 1 . . 2 Hover . | . . . . . Flight 1 | . . . . 1 Utility 9 | . 1 3 1 4 Device 3 | . 1 1 . 1 Storage 1 | . . . 1 . Processor 2 | . . . . 2 Hackware . | . . . . . Protection 3 | . . 2 . 1 Artifact . | . . . . . Weapon 18 | 2 . 6 . 10 Energy Gun 8 | 2 . 5 . 1 Energy Cannon 1 | . . 1 . . Ballistic Gun 6 | . . . . 6 Ballistic Cannon . | . . . . . Launcher 2 | . . . . 2 Special Weapon . | . . . . . Impact Weapon . | . . . . . Slashing Weapon 1 | . . . . 1 Piercing Weapon . | . . . . . Special Melee Weapon . | . . . . . Unidentified Prototypes 2 | . . 1 . 1 Corrupted Parts 1 | . . . . 1 System Corruption 6 | . . . . 6 Parts Lost 24 | . 1 6 . 17 Power 5 | . . 2 . 3 Propulsion 7 | . 1 1 . 5 Utility 5 | . . 2 . 3 Weapon 7 | . . 1 . 6 Highest Loss Streak 11 | . 1 2 . 11 To Critical Strikes . | . . . . . Average Slot Usage (%) 66 | . 74 65 55 66 Engine 5 | . 14 10 . . Core 5 | . . . . 12 Leg 7 | . . 2 11 13 Wheel 6 | . 27 10 . . Device 10 | . 4 17 11 5 Storage 1 | . . . 11 1 Processor 6 | . . . . 13 Protection 3 | . . 3 . 3 Energy Gun 12 | . 28 16 22 5 Energy Cannon 1 | . . 4 . . Ballistic Gun 5 | . . . . 10 Naked Turns . | . . . . . Heaviest Build 26 | 5 6 15 9 26 Greatest Support 46 | 32 32 32 13 46 Greatest Overweight (x) 8 | . . 2 2 8 Average Overweight (x) . | . . . . 1 Largest Inventory Capacity 5 | 5 5 5 5 5 Average Capacity 5 | 5 5 5 5 5 Most Carried 5 | 5 5 5 3 5 Average Carried 3 | 3 3 3 3 4 Final Capacity 5 | 5 5 5 5 5 Final Carried 4 | 3 3 4 3 2 Class Distribution -------------------- 79% | Mutant 20% | Infiltrator-Mutant Dominant Class ---------------- Mutant | -10/Materials Infiltrator-Mutant | -9/Materials Mutant | -9/Mines Mutant | -8/Materials Resources | -11 -10 -9 -9 -8 ----------- Run | Yrd Mat Mat Min Mat Matter Collected 733 | 144 80 143 30 336 Remotely . | . . . . . Salvage Created 1145 | . 127 374 . 644 Parts 59 | . 4 26 . 29 Haulers Intercepted . | . . . . . Recyclers Shooed . | . . . . . Parts Field Recycled . | . . . . . Retrieved Matter . | . . . . . Parts Self-Destructed . | . . . . . Prevented . | . . . . . Kills | -11 -10 -9 -9 -8 ------- Run | Yrd Mat Mat Min Mat Combat Hostiles Destroyed 22 | . 2 9 . 11 Guns 20 | . 2 7 . 11 Cannons 2 | . . 2 . . Classes Destroyed 8 | . 2 3 . 3 Operator 1 | . . . . 1 Watcher 3 | . 1 1 . 1 Swarmer 3 | . . 3 . . Grunt 9 | . 2 2 . 5 Brawler 1 | . . . . 1 Duelist 1 | . . 1 . . Sentry 7 | . . 3 . 4 Hunter 1 | . . . . 1 Best Kill Streak 6 | . 2 6 . 2 Combat Bots Only 5 | . 1 5 . 2 Max Kills in Single Turn 1 | . 1 1 . 1 Gunslinging . | . . . . . Exploded . | . . . . . Melee . | . . . . . Uniques/NPCs Destroyed . | . . . . . Combat | -11 -10 -9 -9 -8 -------- Run | Yrd Mat Mat Min Mat Hostile Shots Fired 341 | . 19 129 . 193 Missed 98 | . 5 48 . 45 Damage Taken 3371 | . 194 927 . 2250 Core 850 | . 42 257 . 551 Absorbed by Shields . | . . . . . Ignored by Resistances 5 | . . 5 . . Regen/Repaired (Parts) 22 | . . 22 . . Core Remaining (%) 72 | 100 83 . 35 . Volleys Fired 108 | . 11 31 . 66 Largest 2 | . 2 2 . 2 Hottest 111 | . 80 111 . 90 Shots Fired 184 | . 22 52 . 110 Gun 170 | . 22 39 . 109 Cannon 13 | . . 13 . . Launcher 1 | . . . . 1 Special . | . . . . . Kinetic 82 | . . . . 82 Thermal 82 | . 22 39 . 21 Explosive . | . . . . . Electromagnetic 20 | . . 13 . 7 Robot Hit Streak 12 | . 7 5 . 12 Robot Miss Streak 5 | . 3 5 . 5 Penetration Max . | . . . . . Secondary Targets . | . . . . . Shots Hit Robots 115 | . 14 29 . 72 Core Hits 43 | . 5 13 . 25 Critical Kills 1 | . . . . 1 Critical Parts Destroyed . | . . . . . Critical Strikes 2 | . . 1 . 1 Burn 1 | . . 1 . . Destroy 1 | . . . . 1 Melee Attacks 2 | . . . . 2 Impact . | . . . . . Slashing 2 | . . . . 2 Piercing . | . . . . . Sneak Attacks . | . . . . . Combat Hostiles . | . . . . . Follow-up Attacks . | . . . . . Damage Inflicted 2053 | . 157 597 . 1299 Guns 1671 | . 157 343 . 1171 Cannons 254 | . . 254 . . Explosions 96 | . . . . 96 Melee 32 | . . . . 32 Ramming . | . . . . . Kinetic 792 | . . . . 792 Thermal 810 | . 157 343 . 310 Explosive . | . . . . . Electromagnetic 419 | . . 254 . 165 Impact . | . . . . . Slashing 32 | . . . . 32 Piercing . | . . . . . Highest Corruption 6 | . . . . 6 Average Corruption 6 | . . . . 6 Corruption Purged . | . . . . . Corruption Blocked . | . . . . . Effects 1 | . . . . 1 Data Loss (minor) 1 | . . . . 1 Overload Shots . | . . . . . Overflow Damage . | . . . . . Projectiles . | . . . . . Explosions . | . . . . . Melee . | . . . . . Knockbacks . | . . . . . Impact . | . . . . . Kinetic . | . . . . . Secondary . | . . . . . Self-Inflicted Damage . | . . . . . Shots . | . . . . . Rammed . | . . . . . Targets Rammed . | . . . . . Kicked . | . . . . . Crushed . | . . . . . Highest Temperature 342 | . 194 342 . 271 Average Temperature 95 | . 82 123 . 76 Received Heat Transfer 1338 | . 84 297 . 957 Effects 5 | . . 2 . 3 Interference 3 | . . . . 3 Matter Decay 1 | . . 1 . . Short Circuit 1 | . . 1 . . Siege Activations . | . . . . . Robots Corrupted 1 | . . . . 1 Combat Hostiles . | . . . . . Parts Fried 4 | . . 1 . 3 Impact Corruptions . | . . . . . Robots Melted . | . . . . . Combat Hostiles . | . . . . . Parts Melted 1 | . . . . 1 Heat Transferred 1682 | . 350 740 . 592 Parts Sabotaged . | . . . . . Parts Stolen . | . . . . . Parts Stripped . | . . . . . Power Chain Reactions . | . . . . . Alert | -11 -10 -9 -9 -8 ------- Run | Yrd Mat Mat Min Mat Peak Influence 269 | . 75 269 63 170 Initial 63 | . . 31 63 24 Average 87 | . 38 130 63 70 Maximum Alert Level 1 | . . 1 . . Low Security (%) 94 | 100 100 85 100 100 Level 1 5 | . . 14 . . Level 2 . | . . . . . Level 3 . | . . . . . Level 4 . | . . . . . Level 5 . | . . . . . High Security . | . . . . . Max Security . | . . . . . Squads Dispatched 6 | . 1 3 . 2 Investigation 2 | . . 2 . . Extermination . | . . . . . Reinforcement 4 | . 1 1 . 2 Assault . | . . . . . Garrison . | . . . . . Intercept . | . . . . . Searches Triggered . | . . . . . Construction Impeded . | . . . . . Haulers Reinforced . | . . . . . Active Scanning Responses . | . . . . . Cargo Convoy Interrupts . | . . . . . Stealth | -11 -10 -9 -9 -8 --------- Run | Yrd Mat Mat Min Mat Distress Signals 4 | . 1 1 . 2 Communications Jammed . | . . . . . Distress Signals . | . . . . . Times Spotted 56 | . 6 25 . 25 Peak Tracking Total 6 | . 2 6 . 6 Tactical Retreats 13 | . 1 8 . 4 Traps | -11 -10 -9 -9 -8 ------- Run | Yrd Mat Mat Min Mat Traps Triggered 1 | . 1 . . . Indirectly . | . . . . . Trap Hack Attempts . | . . . . . Triggered . | . . . . . Disarmed . | . . . . . Reprogrammed . | . . . . . Reused . | . . . . . Traps Extracted . | . . . . . Installed . | . . . . . Triggered . | . . . . . Machines | -11 -10 -9 -9 -8 ---------- Run | Yrd Mat Mat Min Mat Machines Disabled 2 | . . . . 2 Max in Single Turn 1 | . . . . 1 Machines Repaired . | . . . . . Machines Dismantled . | . . . . . Machines Sabotaged . | . . . . . Overloaded Fab Kills . | . . . . . Hacking | -11 -10 -9 -9 -8 --------- Run | Yrd Mat Mat Min Mat Machines Accessed 8 | . 1 5 . 2 Terminals 4 | . 1 1 . 2 Fabricators . | . . . . . Repair Stations 2 | . . 2 . . Recycling Units 1 | . . 1 . . Scanalyzers 1 | . . 1 . . Garrison Access . | . . . . . Total Hacks 23 | . 2 15 . 6 Successful 17 | . 1 12 . 4 Failed 6 | . 1 3 . 2 Catastrophic . | . . . . . Database Lockouts . | . . . . . Manual . | . . . . . Terminals 10 | . 2 2 . 6 Fabricators . | . . . . . Repair Stations 6 | . . 6 . . Recycling Units 4 | . . 4 . . Scanalyzers 3 | . . 3 . . Garrison Access . | . . . . . Terminal Hacks 7 | . 1 2 . 4 Record 2 | . . . . 2 Prototype ID Bank 1 | . . 1 . . Level Access Points 1 | . 1 . . . Unreport Threat 1 | . . . . 1 Locate Traps 1 | . . 1 . . Transport Status 1 | . . . . 1 Fabricator Hacks . | . . . . . Repair Station Hacks 3 | . . 3 . . Scan Component 2 | . . 2 . . Repair 1 | . . 1 . . Recycling Unit Hacks 4 | . . 4 . . Recycle Component 1 | . . 1 . . Process 1 | . . 1 . . Report Inventory 1 | . . 1 . . Retrieve Components 1 | . . 1 . . Scanalyzer 3 | . . 3 . . Insert Component 2 | . . 2 . . Analyze 1 | . . 1 . . Garrison Access Hacks . | . . . . . Unauthorized Hacks . | . . . . . Terminals . | . . . . . Fabricators . | . . . . . Repair Stations . | . . . . . Recycling Units . | . . . . . Scanalyzers . | . . . . . Garrison Access . | . . . . . Data Cores Recovered . | . . . . . Used . | . . . . . Hacking Detections 5 | . 1 2 . 2 Full Trace Events 2 | . . 2 . . Feedback Events . | . . . . . Feedback Blocked . | . . . . . Robot Schematics Acquired . | . . . . . Robots Built . | . . . . . Authchips . | . . . . . Time . | . . . . . Total Robot Build Rating . | . . . . . Part Schematics Acquired 1 | . . 1 . . Parts Built . | . . . . . Authchips . | . . . . . Time . | . . . . . Total Part Build Rating . | . . . . . Parts Repaired 1 | . . 1 . . Time 26 | . . 26 . . Parts Recycled 1 | . . 1 . . Recycled Matter . | . . . . . Retrieved Matter . | . . . . . Retrieved Components 6 | . . 6 . . Parts Scanalyzed 1 | . . 1 . . Part Schematics Acquired 1 | . . 1 . . Parts Damaged . | . . . . . Bothacking | -11 -10 -9 -9 -8 ------------ Run | Yrd Mat Mat Min Mat Used RIF Installer . | . . . . . Robots Hacked . | . . . . . Non-combat . | . . . . . Combat . | . . . . . Robot Hacks Applied . | . . . . . Relay Couplers Released . | . . . . . Fabnet Peak Effective % . | . . . . . Robots Rewired . | . . . . . Allies Hacked . | . . . . . Hacks Repelled . | . . . . . Allies | -11 -10 -9 -9 -8 -------- Run | Yrd Mat Mat Min Mat Total Allies . | . . . . . Largest Group . | . . . . . Highest-Rated Group . | . . . . . Highest-Rated Ally . | . . . . . Total Orders . | . . . . . Ally Attacks . | . . . . . Total Damage . | . . . . . Kills . | . . . . . Allies Corrupted . | . . . . . Allies Melted . | . . . . . Intel | -11 -10 -9 -9 -8 ------- Run | Yrd Mat Mat Min Mat Robot Analysis Total . | . . . . . Derelict Logs Recovered . | . . . . . Drone Launches . | . . . . . Drone Recoveries . | . . . . . Exploration | -11 -10 -9 -9 -8 ------------- Run | Yrd Mat Mat Min Mat Turns Passed 2072 | 61 172 775 79 985 Spaces Moved 1244 | 56 131 604 65 388 Core 179 | 21 . 32 5 121 Treads 2 | . . . . 2 Legs 435 | . . 113 60 262 Wheels 628 | 35 131 459 . 3 Hover . | . . . . . Flight . | . . . . . Fastest Speed 50 | 50 100 100 120 50 Average Speed 122 | 81 100 106 122 160 Slowest Speed 450 | 100 100 150 150 450 Overloaded Moves . | . . . . . Propulsion Burnouts . | . . . . . Robots Hopped . | . . . . . Cave-ins Triggered . | . . . . . Exploration Rate (%) 22 | 4 31 34 13 30 Regions Visited 4 Branch Regions 1 Pre-discovered Areas . | . . . . . Known Exits Taken 1 | . 1 . . . Unknown Exits Taken 3 | 1 . 1 1 . Scrap Searched . | . . . . . Spaces Dug . | . . . . . Terrain Destroyed . | . . . . . Melee . | . . . . . Projectile . | . . . . . AOE . | . . . . . Terrain Rammed . | . . . . . Walls Destroyed . | . . . . . Machines Disabled . | . . . . . Actions | -11 -10 -9 -9 -8 --------- Run | Yrd Mat Mat Min Mat Total 1632 | 72 151 685 65 659 Wait 151 | . 2 16 . 133 Move 1240 | 55 130 603 64 388 Hop . | . . . . . Pick Up 58 | 10 4 15 . 29 Fast Attach . | . . . . . Attach 36 | 5 2 5 1 23 Detach . | . . . . . Swap 12 | . . 7 . 5 Drop 25 | 2 2 8 . 13 Fire 108 | . 11 31 . 66 Melee 2 | . . . . 2 Ram . | . . . . . Kick . | . . . . . Crush . | . . . . . Escape Stasis . | . . . . . Rewire . | . . . . . Trap . | . . . . . Miscellaneous . | . . . . . Route ------- -11/Scrapyard -10/Materials (discovered 3 exits: *Mat x3) -9/Materials -9/Mines -8/Materials History --------- Turn | Location | Event 25 | -11/Scrapyard | Discovered new exit (range 16) 62 | -11/Scrapyard | Entered Materials 70 | -10/Materials | Identified exit to Materials 234 | -10/Materials | Entered another Materials area 234 | -9/Materials | Evolved 2 slots: Propulsion x2 315 | -9/Materials | Build established: Mutant 401 | -9/Materials | Repaired Com. Wheel? 836 | -9/Materials | Core integrity fell below 50% 911 | -9/Materials | Build established: Infiltrator-Mutant 991 | -9/Materials | Discovered new exit (range 15) 1009 | -9/Materials | Entered Mines 1011 | -9/Mines | Met a Derelict bent on vengeance 1037 | -9/Mines | Discovered new exit (range 14) 1088 | -9/Mines | Entered Materials 1088 | -8/Materials | Evolved 2 slots: Power x1, Utility x1 1291 | -8/Materials | Build established: Mutant 2007 | -8/Materials | Core integrity fell below 50% 2046 | -8/Materials | Core integrity fell below 20% 2073 | -8/Materials | Destroyed by H-55 Commando with Assault Rifle Last Messages --------------- Mic. Nuclear Core destroyed. K-01 Serf destroyed. U-05 Engineer lays Concrete. Titanium Leg destroyed. U-05 Engineer lays Concrete. Acquired Corrupted Scythe. Integrated Corrupted Scythe (+6). Complication: FCS attempts to trigger Scythe. Complication: Scythe misfires. Slug penetrates Wall. G-47 Trooper IFF system glitched. Scythe destroyed. Slug penetrates Wall. System corrupted: Component data lost. G-47 Trooper misfires. Mic. Nuclear Core destroyed. Acquired Lgt. Treads. Slug penetrates Wall. Acquired Hvy. Assault Rifle. Penetrated by Slug. Map ----- +----------------------------------------------------+ | ??????????????????????????#### ![=%[ # ## " | | ??????????????????????????# + = !! # ### | | ??????????????????????????# ############### #?# | | ????????????????????????###+###???????????# #?#### | | ????????????????????????# #???????????# #????? | | ????????????????????????# """ #???????????# #????? | | ????????????????????????# """ #???????????+ ????? | | ????????????????????????# """ #???????????# ????? | | ????????????????????????# """ #???????????# ????? | | ????????????????????????# """ #???????????# ????? | | ????????????????????????# #######???###+##???? | | ????????? ###+######+### #?? #???? | | ???????? ## """ #???? | | ???????????""" T / """ #???? | | ???????????""" ## """ #???? | | ????????????"" ##########+### #??? #???? | | ??????????? ?????????????????## ##????? #???? | | ???????????????????????????????# #???????? #???? | | ???????????????????????????????# #?????????????? | | ???????????????????????????????# #?????????????? | | ???????????????????????????????# #?????????????? | | ???????????????????????????????# #?????????????? | | ???????????????????????????????# #######+######+ | | ???????????????????????????????# % | | ??????????????????############## | | ??????????????????# h @ ^ | | ??????????????????# ############################ | | ??????????????????# #???????####???????????????? | | ??????????????????# #???##### ##??????????????? | | ??????????????????# #####"""""""###????????????? | | ??????????????????# ## !%= " ##???????????? | | ?????????????????##% ##[ " #???????????? | | ?? ####### # " ##???????????? | | ?? # " #????????????? | | ?? ! / ! " #????????????? | | ?? % # " ##????????????? | | ?? ####### * # " #????????????? | | ??? ????????####### "###????????????? | | ???? ????????????????######""""##??????????????? | | ????????????????????????????######???????????????? | | ?????????????????????????????????????????????????? | | ?????????????????????????????????????????????????? | | ?????????????????????????????????????????????????? | | ?????????????????????????????????????????????????? | | ?????????????????????????????????????????????????? | | ?????????????????????????????????????????????????? | | ?????????????????????????????????????????????????? | | ?????????????????????????????????????????????????? | | ?????????????????????????????????????????????????? | | ?????????????????????????????????????????????????? | +----------------------------------------------------+ Best States ------------- Heat Dissipation 45 Energy Generation 25 Energy Capacity 200 Matter Stores 300 Matter Capacity 300 Sight Range 20 Terrain Scan Density 10 ECM Strength 1 Armor Coverage 225 Resistance: TH 10 Evasion (%) 55 Targeting Accuracy 5 Recoil Reduction 1 Item Schematics ----------------- Lgt. EM Pulse Cannon | -9/Materials | Scanalyzed Robot Schematics ------------------ None Fabricated ------------ Nothing Alien Tech Used ----------------- None Achievements -------------- Crack Shot Part-time Mechanic Power Corrupts Risk Taker Challenges ------------ None Game ------ Seed DisruptionForceCloak Manual? 0 Play Time 00:36:39 Cumulative 1.2 hours Start 2024.04.01 @ 14:01:29 End 2024.04.01 @ 14:35:06 Sessions 1 Manual Loads 0 Difficulty Rogue Special Mode None Game No. 3 Rogue 3 Adventurer 0 Explorer 0 Win Type - Total 0 Types 0/0/0/0/0/0/0/0/0 Lore% 0 Gallery% 4 Achievement% 3 Wizard Run 0 Options --------- Layout 0 ASCII 0 Keyboard 0 Movement Arrows Keybinds 0 Fullscreen 1 Font 18/SmallcapsGlow Map View 76x50 Zoom Use 0% Tactical HUD 0 Map Filters NONE Filters NONE Steam 1 RUN: c46cdc24-e973-4b9a-b263-e4240d4febd1